bitfinex/quotes_SOLUSD_20250731
["timestamp","ask_amount","ask_price","bid_price","bid_amount"]
[1753928030968,7.90816987,179.88,179.55,227.91730516]
[1753928031167,7.90816987,179.87,179.55,227.91730516]
[1753928031483,4.68742273,179.92,179.55,227.91730516]
[1753928031683,14.1484644,179.91,179.55,227.91730516]
[1753928031871,12.06781928,179.9,179.55,227.91730516]
[1753928032071,12.06781928,179.89,179.55,227.91730516]
[1753928032371,7.90652903,179.88,179.55,227.91730516]
[1753928032562,4.68742273,179.93,179.55,227.91730516]
[1753928032762,14.14456234,179.92,179.55,227.91730516]
[1753928032972,12.06450043,179.91,179.55,227.91730516]
[1753928033186,7.90437106,179.9,179.55,227.91730516]
[1753928033390,7.90437106,179.89,179.55,227.91730516]
[1753928033563,4.68742273,179.93,179.55,227.91730516]
[1753928033762,14.14087467,179.92,179.55,227.91730516]
[1753928033964,12.0613622,179.91,179.55,227.91730516]
[1753928034267,12.06150671,179.9,179.55,227.91730516]
[1753928034468,7.90248177,179.89,179.55,227.91730516]
[1753928034778,7.90248177,179.88,179.55,227.91730516]
[1753928034980,7.90248177,179.87,179.55,227.91730516]
[1753928035165,4.68742273,179.92,179.55,227.91730516]
[1753928035365,12.05813234,179.91,179.55,227.91730516]
[1753928035575,12.05813234,179.9,179.55,227.91730516]
[1753928035776,7.90027266,179.89,179.55,227.91730516]
[1753928036066,7.90027266,179.88,179.55,227.91730516]
[1753928036374,4.68742273,179.92,179.55,227.91730516]
[1753928036583,8.31457424,179.91,179.55,227.91730516]
[1753928036768,12.05650161,179.9,179.55,227.91730516]
[1753928036969,7.89921449,179.89,179.55,227.91730516]
[1753928037164,7.89921449,179.88,179.55,227.91730516]
[1753928037365,4.68742273,179.92,179.55,227.91730516]
[1753928037579,8.31351966,179.91,179.55,227.91730516]
[1753928037778,12.0548405,179.9,179.56,27.58651157]
[1753928037984,7.89822601,179.89,179.56,27.58651157]
[1753928038269,7.89822601,179.88,179.56,27.58651157]
[1753928038489,7.89755425,179.87,179.56,27.58651157]
[1753928038793,4.68742273,179.92,179.56,27.58651157]
[1753928039090,10.39098245,179.91,179.56,27.58651157]
[1753928039292,12.0539388,179.9,179.56,27.58651157]
[1753928039589,4.15639298,179.89,179.56,27.58651157]
[1753928039788,4.15639298,179.88,179.56,27.58651157]
[1753928039990,4.15639298,179.87,179.56,27.58651157]
[1753928040191,8.41686903,179.92,179.56,27.58651157]
[1753928040401,12.0520956,179.91,179.56,27.58651157]
[1753928040695,12.0520956,179.9,179.56,27.58651157]
[1753928040994,7.89646314,179.89,179.56,27.58651157]
[1753928041177,7.89646314,179.88,179.56,27.58651157]
[1753928041488,4.67603835,179.93,179.56,27.58651157]
[1753928041688,14.12802925,179.92,179.56,255.44381673]
[1753928041886,12.0504442,179.91,179.56,255.44381673]
[1753928042186,4.67603835,179.93,179.56,255.44381673]
[1753928042187,12.0504442,179.9,179.56,255.44381673]
[1753928042402,7.89526854,179.89,179.56,255.44381673]
[1753928042568,7.89526854,179.88,179.56,255.44381673]
[1753928042768,4.67603835,179.93,179.56,255.44381673]
[1753928042986,10.38684997,179.92,179.56,255.44381673]
[1753928043185,12.04922559,179.91,179.56,255.44381673]
[1753928043388,12.04922559,179.9,179.56,255.44381673]
[1753928043669,7.89448782,179.89,179.56,227.85730516]
[1753928043868,4.67603835,179.93,179.56,227.85730516]
[1753928044070,8.30862778,179.92,179.56,227.85730516]
[1753928044272,12.04798926,179.91,179.56,227.85730516]
[1753928044472,7.89314183,179.9,179.56,227.85730516]
[1753928044694,7.89314183,179.89,179.56,227.85730516]
[1753928044886,4.67353493,179.94,179.56,227.85730516]
[1753928045177,10.38426926,179.93,179.56,227.85730516]
[1753928045393,12.04624646,179.92,179.56,227.85730516]
[1753928045596,12.04624646,179.91,179.56,227.85730516]
[1753928045771,7.89254097,179.9,179.56,227.85730516]
[1753928045972,4.67353493,179.94,179.56,227.85730516]
[1753928045973,7.89254097,179.89,179.56,227.85730516]
[1753928046169,4.67353493,179.94,179.56,227.85730516]
[1753928046375,10.38163555,179.93,179.56,227.85730516]
[1753928046574,12.04320234,179.92,179.56,227.85730516]
[1753928046888,7.89055255,179.91,179.56,227.85730516]
[1753928047084,7.89055255,179.9,179.56,227.85730516]
[1753928047281,7.89055255,179.89,179.56,227.85730516]
[1753928047483,4.67353493,179.94,179.56,227.85730516]
[1753928047785,8.30435356,179.93,179.56,227.85730516]
[1753928047983,12.04183108,179.92,179.56,227.85730516]
[1753928048187,7.8896543,179.91,179.56,227.85730516]
[1753928048392,7.8896543,179.9,179.56,227.85730516]
[1753928048591,3.73747752,179.89,179.56,227.85730516]
[1753928048789,4.67353493,179.94,179.56,227.85730516]
[1753928048990,8.30349095,179.93,179.56,227.85730516]
[1753928049296,12.04096847,179.92,179.56,227.85730516]
[1753928049598,7.88922022,179.91,179.56,227.85730516]
[1753928049908,7.88922022,179.9,179.56,227.85730516]
[1753928050101,4.67353493,179.94,179.57,27.78670987]
[1753928050274,8.30309826,179.93,179.58,27.23553913]
[1753928050476,12.03949798,179.92,179.57,255.64401503]
[1753928050775,7.88794885,179.91,179.57,255.64401503]
[1753928050980,7.88794885,179.9,179.57,255.64401503]
[1753928051179,4.67353493,179.94,179.57,227.85730516]
[1753928051380,15.05223373,179.93,179.57,227.85730516]
[1753928051601,12.03908554,179.92,179.57,227.85730516]
[1753928051787,12.03908554,179.91,179.57,227.85730516]
[1753928051987,7.88760779,179.9,179.57,227.85730516]
[1753928052180,7.88760779,179.89,179.57,227.85730516]
[1753928052483,4.67353493,179.94,179.57,227.85730516]
[1753928052684,10.37758552,179.93,179.57,227.85730516]
[1753928052887,12.03807202,179.92,179.57,255.64401503]
[1753928053080,12.03807202,179.91,179.57,255.64401503]
[1753928053402,7.88703781,179.9,179.57,255.64401503]
[1753928053600,7.88703781,179.89,179.57,255.64401503]
[1753928053804,4.67353493,179.94,179.57,255.64401503]
[1753928053998,10.3776751,179.93,179.57,227.85730516]
[1753928054189,12.03817262,179.92,179.57,227.85730516]
[1753928054391,12.0385366,179.91,179.57,227.85730516]
[1753928054589,7.88746656,179.9,179.57,227.85730516]
[1753928054806,7.88746656,179.89,179.57,227.85730516]
[1753928054994,4.67353493,179.94,179.57,227.85730516]
[1753928055200,10.37859335,179.93,179.57,227.85730516]
[1753928055393,18.78895544,179.92,179.57,227.85730516]
[1753928055580,12.03929889,179.91,179.57,227.85730516]
[1753928055786,12.03929889,179.9,179.57,227.85730516]
[1753928055982,7.88786155,179.89,179.57,227.85730516]
[1753928056200,4.67353493,179.92,179.57,227.85730516]
[1753928056201,7.88786155,179.88,179.57,227.85730516]
[1753928056403,7.88786155,179.87,179.57,227.85730516]
[1753928056705,4.67353493,179.92,179.57,227.85730516]
[1753928056901,10.38254125,179.91,179.57,227.85730516]
[1753928057078,12.0437917,179.9,179.57,227.85730516]
[1753928057282,12.0437917,179.89,179.57,227.85730516]
[1753928057581,7.89077853,179.88,179.57,227.85730516]
[1753928057782,7.89077853,179.87,179.57,227.85730516]
[1753928058000,4.67353493,179.92,179.57,227.85730516]
[1753928058190,10.38450422,179.91,179.57,227.85730516]
[1753928058401,12.04629739,179.9,179.57,227.85730516]
[1753928058603,12.04629739,179.89,179.57,227.85730516]
[1753928058790,7.89249237,179.88,179.57,227.85730516]
[1753928058996,3.7386929,179.87,179.57,227.85730516]
[1753928059195,4.15543046,179.86,179.57,227.85730516]
[1753928059395,4.67353493,179.91,179.57,227.85730516]
[1753928059588,8.31136294,179.9,179.57,227.85730516]
[1753928059901,12.05005584,179.89,179.57,227.85730516]
[1753928060106,12.05086803,179.88,179.57,227.85730516]
[1753928060292,7.89437437,179.87,179.57,227.85730516]
[1753928060610,7.89437437,179.86,179.57,227.85730516]
[1753928060787,4.67353493,179.9,179.57,227.85730516]
[1753928061103,8.31375616,179.89,179.57,227.85730516]
[1753928061304,12.05500402,179.88,179.57,227.85730516]
[1753928061490,7.89812594,179.87,179.57,227.85730516]
[1753928061691,7.89812594,179.86,179.57,227.85730516]
[1753928061891,4.67353493,179.9,179.57,227.85730516]
[1753928062109,12.05836654,179.89,179.57,227.85730516]
[1753928062304,12.05836654,179.88,179.57,227.85730516]
[1753928062491,7.90033372,179.87,179.57,227.85730516]
[1753928062683,4.67353493,179.9,179.57,227.85730516]
[1753928062684,7.90033372,179.86,179.57,227.85730516]
[1753928062887,4.67353493,179.9,179.57,227.85730516]
[1753928063104,12.0619726,179.89,179.57,227.85730516]
[1753928063307,12.0619726,179.88,179.57,227.85730516]
[1753928063507,7.90269802,179.87,179.57,227.85730516]
[1753928063709,7.90269802,179.86,179.57,227.85730516]
[1753928063909,7.90269802,179.85,179.57,227.85730516]
[1753928064106,4.67353493,179.9,179.57,227.85730516]
[1753928064311,14.15216226,179.89,179.57,227.85730516]
[1753928064518,12.07097932,179.88,179.57,227.85730516]
[1753928064811,12.07097932,179.87,179.57,227.85730516]
[1753928065012,7.90861344,179.86,179.57,227.85730516]
[1753928065186,7.90861344,179.85,179.57,227.85730516]
[1753928065392,7.91053927,179.84,179.57,227.85730516]
[1753928065700,4.67353493,179.89,179.57,227.85730516]
[1753928065897,12.07657749,179.88,179.57,227.85730516]
[1753928066215,12.07657749,179.87,179.57,227.85730516]
[1753928066419,12.07657749,179.86,179.57,227.85730516]
[1753928066601,7.91227812,179.85,179.57,227.85730516]
[1753928066914,3.74797875,179.84,179.57,227.85730516]
[1753928067303,4.16617127,179.83,179.57,227.85730516]
[1753928067610,7.91415002,179.86,179.57,227.85730516]
[1753928067926,3.74797875,179.85,179.57,227.85730516]
[1753928068619,3.74797875,179.87,179.57,227.85730516]
[1753928068812,3.74797875,179.86,179.57,227.85730516]
[1753928069117,3.74797875,179.87,179.57,227.85730516]
[1753928069326,8.33599862,179.85,179.57,227.85730516]
[1753928069492,3.74797875,179.84,179.57,227.85730516]
[1753928070399,4.16918977,179.83,179.57,227.85730516]
[1753928071022,4.16918977,179.82,179.57,227.85730516]
[1753928071191,4.16918977,179.81,179.57,227.85730516]
[1753928071393,3.74797875,179.83,179.57,227.85730516]
[1753928071603,4.16813538,179.82,179.57,227.85730516]
[1753928071804,4.16813538,179.81,179.57,227.85730516]
[1753928071998,3.74797875,179.82,179.57,227.85730516]
[1753928072198,4.16813427,179.81,179.57,227.85730516]
[1753928072407,3.74797875,179.83,179.57,227.85730516]
[1753928072600,4.16726591,179.82,179.57,227.85730516]
[1753928072808,4.16726591,179.81,179.57,227.85730516]
[1753928072996,3.74797875,179.83,179.57,227.85730516]
[1753928073316,4.16726814,179.82,179.57,227.85730516]
[1753928073515,4.16726814,179.81,179.57,227.85730516]
[1753928073704,3.74797875,179.83,179.57,227.91730516]
[1753928074018,4.16636874,179.82,179.57,227.91730516]
[1753928074200,4.16636874,179.81,179.57,227.91730516]
[1753928074403,3.74797875,179.83,179.57,227.91730516]
[1753928074607,4.16539535,179.82,179.57,227.91730516]
[1753928074908,4.16539535,179.81,179.57,227.91730516]
[1753928075095,3.74797875,179.83,179.57,227.91730516]
[1753928075297,4.16467543,179.82,179.57,227.91730516]
[1753928075501,4.16467543,179.81,179.57,227.91730516]
[1753928075705,4.16467543,179.8,179.57,227.91730516]
[1753928075905,3.74797875,179.83,179.57,227.91730516]
[1753928076113,8.3298601,179.82,179.57,227.91730516]
[1753928076317,7.9129088,179.81,179.57,227.91730516]
[1753928076511,7.9129088,179.8,179.57,227.91730516]
[1753928076811,4.67353493,179.85,179.57,227.91730516]
[1753928077127,14.15462162,179.84,179.57,227.91730516]
[1753928077309,12.07288791,179.83,179.57,227.91730516]
[1753928077509,12.07288791,179.82,179.57,227.91730516]
[1753928077698,3.74595305,179.81,179.57,227.91730516]
[1753928077898,4.16223099,179.8,179.57,227.91730516]
[1753928078203,3.74595305,179.84,179.57,227.91730516]
[1753928078414,8.32272894,179.83,179.57,227.91730516]
[1753928078599,12.06868199,179.82,179.57,227.91730516]
[1753928078799,7.90731752,179.81,179.57,227.91730516]
[1753928079118,7.90731752,179.8,179.57,227.91730516]
[1753928079326,4.67353493,179.85,179.57,227.91730516]
[1753928079514,14.14469085,179.84,179.57,227.91730516]
[1753928079717,12.0644497,179.83,179.57,227.91730516]
[1753928079936,12.0644497,179.82,179.57,227.91730516]
[1753928080219,7.9039674,179.81,179.57,227.91730516]
[1753928080422,7.9039674,179.8,179.57,227.91730516]
[1753928080625,4.67353493,179.85,179.57,227.91730516]
[1753928080810,14.14175254,179.84,179.57,227.91730516]
[1753928081005,12.06192207,179.83,179.57,227.91730516]
[1753928081213,12.06192207,179.82,179.57,227.91730516]
[1753928081399,7.90226113,179.81,179.57,227.91730516]
[1753928081603,7.90226113,179.8,179.57,227.91730516]
[1753928081799,4.67353493,179.85,179.57,227.91730516]
[1753928082014,14.13894427,179.84,179.57,227.91730516]
[1753928082328,12.0588092,179.83,179.57,227.91730516]
[1753928082509,7.89999143,179.82,179.57,227.91730516]
[1753928082708,7.89999143,179.81,179.57,227.91730516]
[1753928082904,7.89999143,179.8,179.57,227.91730516]
[1753928083106,4.67353493,179.85,179.57,227.91730516]
[1753928083313,8.3149322,179.84,179.57,227.91730516]
[1753928083615,12.05568532,179.83,179.57,227.91730516]
[1753928083821,7.89821922,179.82,179.57,227.91730516]
[1753928084009,7.89821922,179.81,179.57,227.91730516]
[1753928084205,4.67353493,179.85,179.57,227.91730516]
[1753928084409,8.31373962,179.84,179.57,227.91730516]
[1753928084623,12.05398366,179.83,179.57,227.91730516]
[1753928084928,7.89711385,179.82,179.57,227.91730516]
[1753928085125,7.89711385,179.81,179.57,227.91730516]
[1753928085314,4.67353493,179.85,179.57,227.91730516]
[1753928085510,8.31300632,179.84,179.57,227.91730516]
[1753928085711,12.05291331,179.83,179.57,227.91730516]
[1753928085916,7.89641015,179.82,179.57,227.91730516]
[1753928086116,7.89641015,179.81,179.57,227.91730516]
[1753928086420,4.67353493,179.86,179.57,227.91730516]
[1753928086623,10.39069542,179.85,179.57,227.91730516]
[1753928086826,12.05221848,179.84,179.57,227.91730516]
[1753928087012,12.05221848,179.83,179.57,227.91730516]
[1753928087212,7.8959392,179.82,179.57,227.91730516]
[1753928087412,7.8959392,179.81,179.57,227.91730516]
[1753928087707,4.67353493,179.86,179.57,227.91730516]
[1753928088031,10.39008035,179.85,179.57,227.91730516]
[1753928088229,12.05153702,179.84,179.57,227.91730516]
[1753928088430,12.05153702,179.83,179.57,227.91730516]
[1753928088730,7.89550488,179.82,179.57,227.91730516]
[1753928089027,7.89550488,179.81,179.57,227.91730516]
[1753928089231,4.67353493,179.86,179.57,227.91730516]
[1753928089426,10.38924681,179.85,179.57,227.91730516]
[1753928089624,7.89478428,179.84,179.57,227.91730516]
[1753928089926,8.31139634,179.83,179.57,227.91730516]
[1753928090125,7.89478428,179.82,179.57,227.91730516]
[1753928090318,7.89478428,179.81,179.57,227.91730516]
[1753928090620,4.67353493,179.85,179.57,227.91730516]
[1753928090820,8.31152845,179.84,179.57,227.91730516]
[1753928091141,12.05068869,179.83,179.57,227.91730516]
[1753928091327,7.89492224,179.82,179.57,227.91730516]
[1753928091528,7.89492224,179.81,179.57,227.91730516]
[1753928091731,4.15591345,179.8,179.57,227.91730516]
[1753928091922,4.67353493,179.85,179.57,227.91730516]
[1753928092112,8.3119325,179.84,179.57,227.91730516]
[1753928092406,12.05110749,179.83,179.57,227.91730516]
[1753928092609,7.89514402,179.82,179.57,227.91730516]
[1753928092831,7.89514402,179.81,179.57,227.91730516]
[1753928093032,7.89525363,179.8,179.57,227.91730516]
[1753928093232,6.24265049,179.87,179.57,227.91730516]
[1753928093233,4.15657758,179.79,179.57,227.91730516]
[1753928093426,4.67353493,179.84,179.57,227.91730516]
[1753928093628,10.39143772,179.83,179.57,227.91730516]
[1753928093935,12.05244829,179.82,179.57,227.91730516]
[1753928094140,7.89587176,179.81,179.57,227.91730516]
[1753928094337,7.89587176,179.8,179.57,227.91730516]
[1753928094636,7.89587176,179.79,179.57,227.91730516]
[1753928094810,4.67353493,179.84,179.57,227.91730516]
[1753928095011,10.3922011,179.83,179.57,227.91730516]
[1753928095210,12.05310917,179.82,179.57,227.91730516]
[1753928095424,12.05310917,179.81,179.57,227.91730516]
[1753928095624,7.89622873,179.8,179.57,227.91730516]
[1753928095836,7.89622873,179.79,179.57,227.91730516]
[1753928096022,4.67353493,179.84,179.57,227.91730516]
[1753928096213,18.80582972,179.83,179.57,227.91730516]
[1753928096415,12.05377386,179.82,179.57,227.91730516]
[1753928096715,12.05377386,179.81,179.57,227.91730516]
[1753928096914,7.89672643,179.8,179.57,227.91730516]
[1753928097240,4.67353493,179.83,179.57,227.91730516]
[1753928097241,7.89672643,179.79,179.57,227.91730516]
[1753928097434,4.67353493,179.83,179.57,227.91730516]
[1753928097632,8.31534366,179.82,179.57,227.91730516]
[1753928097819,12.05513407,179.81,179.57,227.91730516]
[1753928098019,7.89746224,179.8,179.57,227.91730516]
[1753928098227,7.89746224,179.79,179.57,227.91730516]
[1753928098537,7.89798919,179.78,179.57,227.91730516]
[1753928098714,4.67353493,179.83,179.57,227.91730516]
[1753928098914,10.39549972,179.82,179.57,227.91730516]
[1753928099113,12.05641327,179.81,179.57,227.91730516]
[1753928099342,12.05641327,179.8,179.57,227.91730516]
[1753928099527,7.89821338,179.79,179.57,227.91730516]
[1753928099728,7.89821338,179.78,179.57,227.91730516]
[1753928099922,4.67353493,179.82,179.57,227.91730516]
[1753928100117,14.13749216,179.81,179.57,227.91730516]
[1753928100318,12.05798249,179.8,179.57,227.91730516]
[1753928100540,7.89910537,179.79,179.57,227.91730516]
[1753928100725,7.89910537,179.78,179.57,227.91730516]
[1753928100926,4.67353493,179.82,179.57,227.91730516]
[1753928101145,14.14048461,179.81,179.57,227.91730516]
[1753928101327,12.06055774,179.8,179.57,227.91730516]
[1753928101523,12.06055774,179.79,179.57,227.91730516]
[1753928101834,12.06055774,179.78,179.57,227.91730516]
[1753928102144,12.06055774,179.77,179.57,227.91730516]
[1753928102346,12.06055774,179.76,179.57,227.91730516]
[1753928102536,7.900704,179.75,179.57,227.91730516]
[1753928102741,4.15980367,179.74,179.57,227.91730516]
[1753928102924,4.67353493,179.79,179.57,227.91730516]
[1753928103120,10.39892786,179.78,179.57,227.91730516]
[1753928103340,12.05868329,179.77,179.57,227.91730516]
[1753928103526,7.89910881,179.76,179.57,227.91730516]
[1753928103845,7.89910881,179.75,179.57,227.91730516]
[1753928104036,7.89910881,179.74,179.57,227.91730516]
[1753928104236,4.67353493,179.79,179.57,227.91730516]
[1753928104538,10.3953007,179.78,179.57,227.91730516]
[1753928104841,12.05416678,179.77,179.57,227.91730516]
[1753928105035,12.05416678,179.76,179.57,227.91730516]
[1753928105243,7.8960465,179.75,179.57,227.91730516]
[1753928105539,7.8960465,179.74,179.57,227.91730516]
[1753928105740,4.67353493,179.79,179.57,227.91730516]
[1753928105942,10.39360754,179.78,179.57,227.91730516]
[1753928106143,12.05221488,179.77,179.57,227.91730516]
[1753928106449,7.89477075,179.76,179.57,227.91730516]
[1753928106643,7.89477075,179.75,179.57,227.91730516]
[1753928106846,7.89477075,179.74,179.57,227.91730516]
[1753928107141,4.67353493,179.79,179.57,227.91730516]
[1753928107340,10.39204975,179.78,179.57,227.91730516]
[1753928107638,12.05011262,179.77,179.57,227.91730516]
[1753928107845,7.89329272,179.76,179.57,227.91730516]
[1753928108046,4.67353493,179.79,179.57,227.91730516]
[1753928108047,7.89329272,179.75,179.57,227.91730516]
[1753928108234,4.1568199,179.74,179.57,227.91730516]
[1753928108428,4.67353493,179.79,179.57,227.91730516]
[1753928108630,10.39218124,179.78,179.57,227.91730516]
[1753928108835,12.05007087,179.77,179.57,227.91730516]
[1753928109036,4.67353493,179.79,179.57,227.91730516]
[1753928109037,7.89319726,179.76,179.57,227.91730516]
[1753928109350,7.89319726,179.75,179.57,227.91730516]
[1753928109539,7.89319726,179.74,179.57,227.91730516]
[1753928109744,4.67353493,179.79,179.57,227.91730516]
[1753928109962,10.39291795,179.78,179.57,227.91730516]
[1753928110123,12.05052608,179.77,179.57,227.91730516]
[1753928110327,12.05052608,179.76,179.57,227.91730516]
[1753928110550,7.89336001,179.75,179.57,227.91730516]
[1753928110857,7.89336001,179.74,179.57,227.91730516]
[1753928111025,7.89336001,179.73,179.57,227.91730516]
[1753928111230,4.15781589,179.72,179.57,227.91730516]
[1753928111445,4.67353493,179.77,179.57,227.91730516]
[1753928111660,10.39453972,179.76,179.57,227.91730516]
[1753928111831,12.05120423,179.75,179.57,227.91730516]
[1753928112164,12.05013223,179.74,179.57,80.91730516]
[1753928112329,7.89231634,179.73,179.57,80.91730516]
[1753928112655,7.89231757,179.72,179.57,80.91730516]
[1753928112837,4.15674734,179.71,179.57,80.91730516]
[1753928113039,4.67353493,179.76,179.57,80.91730516]
[1753928113240,8.31125294,179.75,179.57,80.91730516]
[1753928113438,12.04591131,179.74,179.57,80.91730516]
[1753928113655,7.89028484,179.73,179.57,80.91730516]
[1753928113843,7.89028484,179.72,179.57,80.91730516]
[1753928114027,4.67353493,179.76,179.57,80.91730516]
[1753928114231,8.30942612,179.75,179.57,80.91730516]
[1753928114447,12.0430258,179.74,179.57,80.91730516]
[1753928114752,7.88831274,179.73,179.57,80.91730516]
[1753928115050,7.88831274,179.72,179.57,80.91730516]
[1753928115254,7.88831274,179.71,179.57,80.91730516]
[1753928115433,4.67353493,179.75,179.57,80.91730516]
[1753928115634,8.30736248,179.74,179.57,80.91730516]
[1753928115834,12.04004808,179.73,179.57,80.91730516]
[1753928116155,7.88636684,179.72,179.57,80.91730516]
[1753928116454,7.88636684,179.71,179.57,80.91730516]
[1753928116654,4.67353493,179.76,179.57,80.91730516]
[1753928116840,10.38322902,179.75,179.57,80.91730516]
[1753928117043,12.03852276,179.74,179.57,80.91730516]
[1753928117235,7.88523004,179.73,179.57,80.91730516]
[1753928117435,7.88523004,179.72,179.57,80.91730516]
[1753928117636,7.88523004,179.71,179.57,80.91730516]
[1753928117842,4.67353493,179.76,179.57,80.91730516]
[1753928118060,15.0549851,179.75,179.57,80.91730516]
[1753928118357,12.03643741,179.74,179.57,80.91730516]
[1753928118544,12.03643741,179.73,179.57,80.91730516]
[1753928118856,7.88385623,179.72,179.57,80.91730516]
[1753928119058,7.88385623,179.71,179.57,80.91730516]
[1753928119355,4.67353493,179.75,179.57,80.91730516]
[1753928119535,8.30305212,179.74,179.57,80.91730516]
[1753928119835,12.03312375,179.73,179.57,80.91730516]
[1753928120037,7.88159769,179.72,179.57,80.91730516]
[1753928120250,7.88159769,179.71,179.57,80.91730516]
[1753928120455,4.67353493,179.76,179.57,80.91730516]
[1753928120647,10.37797462,179.75,179.57,80.91730516]
[1753928120841,12.03212346,179.74,179.57,80.91730516]
[1753928121043,12.03211902,179.73,179.57,80.91730516]
[1753928121240,7.88092917,179.72,179.57,80.91730516]
[1753928121439,7.88092917,179.71,179.57,80.91730516]
[1753928121638,4.67353493,179.76,179.57,80.91730516]
[1753928121845,10.3766036,179.75,179.57,80.91730516]
[1753928122045,12.03050893,179.74,179.57,80.91730516]
[1753928122346,7.87986749,179.73,179.57,80.91730516]
[1753928122547,7.87986749,179.72,179.57,80.91730516]
[1753928122846,4.15064144,179.71,179.57,80.91730516]
[1753928123047,4.67353493,179.76,179.57,80.91730516]
[1753928123234,8.29974674,179.75,179.57,80.91730516]
[1753928123438,12.02873743,179.74,179.57,80.91730516]
[1753928123656,7.87886406,179.73,179.57,80.91730516]
[1753928123955,7.87886406,179.72,179.57,80.91730516]
[1753928124161,7.87886406,179.71,179.57,80.91730516]
[1753928124371,4.67353493,179.76,179.57,80.91730516]
[1753928124662,10.37489357,179.75,179.57,80.91730516]
[1753928124839,12.02842765,179.74,179.57,80.91730516]
[1753928125145,7.87846689,179.73,179.57,80.91730516]
[1753928125347,12.02866265,179.72,179.57,80.91730516]
[1753928125553,7.87846689,179.71,179.57,80.91730516]
[1753928125737,7.87846689,179.7,179.57,80.91730516]
[1753928125938,4.67353493,179.75,179.57,80.91730516]
[1753928126138,10.37551557,179.74,179.57,80.91730516]
[1753928126338,12.02859069,179.73,179.57,80.91730516]
[1753928126539,7.87838446,179.72,179.57,80.91730516]
[1753928126749,7.87838446,179.71,179.57,80.91730516]
[1753928126949,4.15020623,179.7,179.57,80.91730516]
[1753928127245,4.67353493,179.75,179.57,80.91730516]
[1753928127438,8.29925345,179.74,179.57,80.91730516]
[1753928127642,12.02717906,179.73,179.57,80.91730516]
[1753928127863,7.87754956,179.72,179.57,80.91730516]
[1753928128162,7.87754956,179.71,179.57,80.91730516]
[1753928128363,4.14962395,179.7,179.57,80.91730516]
[1753928128544,4.67353493,179.75,179.57,80.91730516]
[1753928128863,8.29924351,179.74,179.57,80.91730516]
[1753928129056,7.87753853,179.73,179.57,80.91730516]
[1753928129266,7.84047839,179.72,179.57,80.91730516]
[1753928129561,3.72791955,179.71,179.57,80.91730516]
[1753928129772,3.72839656,179.75,179.57,80.91730516]
[1753928129945,4.11351425,179.74,179.57,80.91730516]
[1753928130148,4.11351425,179.73,179.57,80.91730516]
[1753928130355,3.72839656,179.75,179.57,80.91730516]
[1753928130664,4.67353493,179.76,179.57,80.91730516]
[1753928131863,8.40193149,179.77,179.57,80.91730516]
[1753928132070,10.28273753,179.76,179.57,80.91730516]
[1753928132247,11.95534708,179.75,179.57,80.91730516]
[1753928132447,7.84221523,179.74,179.57,80.91730516]
[1753928132666,7.84221523,179.73,179.57,80.91730516]
[1753928132861,7.84221523,179.72,179.57,80.91730516]
[1753928133062,4.67353493,179.77,179.57,80.91730516]
[1753928133267,10.28476817,179.76,179.57,80.91730516]
[1753928133449,11.92187195,179.75,179.57,80.91730516]
[1753928133651,11.92187195,179.74,179.57,80.91730516]
[1753928133858,7.80796468,179.73,179.57,80.91730516]
[1753928134168,7.80854367,179.72,179.57,80.91730516]
[1753928134366,4.67353493,179.76,179.57,80.91730516]
[1753928134549,8.2307596,179.75,179.57,80.91730516]
[1753928134749,11.92556793,179.74,179.57,80.91730516]
[1753928135047,7.81018813,179.73,179.57,80.91730516]
[1753928135257,7.81018813,179.72,179.57,80.91730516]
[1753928135456,4.67353493,179.76,179.57,80.91730516]
[1753928135754,8.23272496,179.75,179.57,80.91730516]
[1753928135958,7.81206698,179.74,179.57,80.91730516]
[1753928136164,7.81206698,179.73,179.57,80.91730516]
[1753928136469,7.81206698,179.72,179.57,80.91730516]
[1753928136674,7.81206698,179.71,179.57,80.91730516]
[1753928136856,4.67353493,179.76,179.57,80.91730516]
[1753928137050,10.29173612,179.75,179.57,80.91730516]
[1753928137349,11.92924488,179.74,179.57,80.91730516]
[1753928137549,7.81255043,179.73,179.57,80.91730516]
[1753928137764,7.81255043,179.72,179.57,80.91730516]
[1753928137956,7.81255043,179.71,179.57,80.91730516]
[1753928138156,4.67353493,179.76,179.57,80.91730516]
[1753928138357,10.29970732,179.75,179.57,80.91730516]
[1753928138559,11.93864822,179.74,179.57,80.91730516]
[1753928138769,7.81876419,179.73,179.57,80.91730516]
[1753928138963,7.81876419,179.72,179.57,80.91730516]
[1753928139165,7.81876419,179.71,179.57,80.91730516]
[1753928139358,4.67353493,179.75,179.57,80.91730516]
[1753928139557,8.24205812,179.74,179.57,80.91730516]
[1753928139756,7.82093398,179.73,179.57,80.91730516]
[1753928139971,7.82093398,179.72,179.57,80.91730516]
[1753928140262,7.82093398,179.71,179.57,80.91730516]
[1753928140459,4.12102906,179.7,179.57,80.91730516]
[1753928140672,4.67353493,179.75,179.57,80.91730516]
[1753928140848,8.24436478,179.74,179.57,80.91730516]
[1753928141173,7.82302994,179.73,179.57,80.91730516]
[1753928141377,7.82302994,179.72,179.57,80.91730516]
[1753928141552,7.82302994,179.71,179.57,80.91730516]
[1753928141752,7.82302994,179.7,179.57,80.91730516]
[1753928141976,4.67353493,179.75,179.57,80.91730516]